Workbook

Sheet AAPLforClass
B1: In today's class I am going to start by buying 100 shares of AAPL on 1/31/1990, and we'll evaluate the position over time.
B2: -- Objective is to link this issue to the stock returns.
F3: Reinvest cash dividends | I3: Reinvest cash dividends
F4: My Position | I4: log rate of return (monthly)
A5: date | B5: DIVAMT | C5: FACPR | D5: PRC | F5: No Shares | G5: Value | O5: SHROUT | Z5: vwretd
A6: 19900131 | D6: 34 | F6: 100 | G6: =F6*D6 -> 3400 | K6: Deviation from mean | L6: Sqrd Deviations from mean | O6: 125202 | Z6: -0.070115
A7: 19900228 | B7: 0.11 | C7: 0 | D7: 34 | F7: =F6*(1+B7/D7) -> 100.3235294 | G7: =F7*D7 -> 3411 | I7: =LN(D7+B7)-LN(D6/(1+C7)) -> 0.003230071814 | K7: =I7-$D$380 -> -0.01262861837 | L7: =K7^2 -> 0.000159482002 | O7: 125202 | Z7: 0.014901
A8: 19900330 | D8: 40.25 | F8: =F7*(1+B8/D8) -> 100.3235294 | G8: =F8*D8 -> 4038.022059 | I8: =LN(D8+B8)-LN(D7/(1+C8)) -> 0.1687494792 | K8: =I8-$D$380 -> 0.1528907891 | L8: =K8^2 -> 0.02337559338 | O8: 123270 | Z8: 0.02414
A9: 19900430 | D9: 39.375 | F9: 100.3235294 | G9: 3950.238971 | I9: -0.02197890672 | K9: -0.03783759691 | L9: 0.00143168374 | O9: 123270 | Z9: -0.028286
A10: 19900531 | B10: 0.11 | C10: 0 | D10: 41.25 | F10: 100.5910588 | G10: 4149.381176 | I10: 0.04918313305 | K10: 0.03332444287 | L10: 0.001110518492 | O10: 123270 | Z10: 0.088934
A11: 19900629 | D11: 44.75 | F11: 100.5910588 | G11: 4501.449882 | I11: 0.08144033194 | K11: 0.06558164175 | L11: 0.004300951735 | O11: 119668 | Z11: -0.004196
A12: 19900731 | D12: 42 | F12: 100.5910588 | G12: 4224.824471 | I12: -0.06342182644 | K12: -0.07928051662 | L12: 0.006285400316 | O12: 119668 | Z12: -0.009403
A13: 19900831 | B13: 0.11 | C13: 0 | D13: 37 | F13: 100.8901133 | G13: 3732.934193 | I13: -0.1237831432 | K13: -0.1396418334 | L13: 0.01949984163 | O13: 119668 | Z13: -0.091905
A14: 19900928 | D14: 29 | F14: 100.8901133 | G14: 2925.813286 | I14: -0.2436220827 | K14: -0.2594807728 | L14: 0.06733027148 | O14: 115359 | Z14: -0.053843
A15: 19901031 | D15: 30.75 | F15: 100.8901133 | G15: 3102.370985 | I15: 0.05859416427 | K15: 0.04273547408 | L15: 0.001826320745 | O15: 115359 | Z15: -0.012504
A16: 19901130 | B16: 0.12 | C16: 0 | D16: 36.75 | F16: 101.2195504 | G16: 3719.818478 | I16: 0.181508218 | K16: 0.1656495278 | L16: 0.02743976606 | O16: 115359 | Z16: 0.065744
A17: 19901231 | D17: 43 | F17: 101.2195504 | G17: 4352.440668 | I17: 0.15706189 | K17: 0.1412031998 | L17: 0.01993834365 | O17: 114314 | Z17: 0.029513
A18: 19910131 | D18: 55.5 | F18: 101.2195504 | G18: 5617.685049 | I18: 0.2551829051 | K18: 0.2393242149 | L18: 0.05727607982 | O18: 114314 | Z18: 0.049078
A19: 19910228 | B19: 0.12 | C19: 0 | D19: 57.25 | F19: 101.4317137 | G19: 5806.965608 | I19: 0.03313849786 | K19: 0.01727980768 | L19: 0.0002985917533 | O19: 114314 | Z19: 0.075847
A20: 19910328 | D20: 68 | F20: 101.4317137 | G20: 6897.35653 | I20: 0.1720800627 | K20: 0.1562213726 | L20: 0.02440511724 | O20: 118956 | Z20: 0.028923
A21: 19910430 | D21: 55 | F21: 101.4317137 | G21: 5578.744252 | I21: -0.2121745199 | K21: -0.2280332101 | L21: 0.05199914492 | O21: 118956 | Z21: 0.003315
A22: 19910531 | B22: 0.12 | C22: 0 | D22: 47 | F22: 101.6906883 | G22: 4779.462348 | I22: -0.1546356459 | K22: -0.1704943361 | L22: 0.02906831863 | O22: 118956 | Z22: 0.040733
A23: 19910628 | D23: 41.5 | F23: 101.6906883 | G23: 4220.163563 | I23: -0.1244541745 | K23: -0.1403128647 | L23: 0.01968769999 | O23: 117490 | Z23: -0.044029
A24: 19910731 | D24: 46.25 | F24: 101.6906883 | G24: 4703.194332 | I24: 0.1083680367 | K24: 0.09250934654 | L24: 0.008557979196 | O24: 117490 | Z24: 0.046795
A25: 19910830 | B25: 0.12 | C25: 0 | D25: 53 | F25: 101.9209313 | G25: 5401.809361 | I25: 0.1384920412 | K25: 0.122633351 | L25: 0.01503893878 | O25: 117490 | Z25: 0.026817
A26: 19910930 | D26: 49.5 | F26: 101.9209313 | G26: 5045.086101 | I26: -0.06831924398 | K26: -0.08417793416 | L26: 0.0070859246 | O26: 118386 | Z26: -0.010975
A27: 19911031 | D27: 51.5 | F27: 101.9209313 | G27: 5248.927964 | I27: 0.0396091381 | K27: 0.02375044791 | L27: 0.0005640837759 | O27: 118386 | Z27: 0.017815
A28: 19911129 | B28: 0.12 | C28: 0 | D28: 50.75 | F28: 102.1619266 | G28: 5184.717777 | I28: -0.01230844884 | K28: -0.02816713902 | L28: 0.0007933877206 | O28: 118386 | Z28: -0.037275
A29: 19911231 | D29: 56.375 | F29: 102.1619266 | G29: 5759.378614 | I29: 0.1051141799 | K29: 0.08925548971 | L29: 0.007966542444 | O29: 118490 | Z29: 0.106778
A30: 19920131 | D30: 64.75 | F30: 102.1619266 | G30: 6614.98475 | I30: 0.1385079028 | K30: 0.1226492126 | L30: 0.01504282934 | O30: 118490 | Z30: -0.001182
A31: 19920228 | B31: 0.12 | C31: 0 | D31: 67.5 | F31: 102.3435478 | G31: 6908.189479 | I31: 0.0433700967 | K31: 0.02751140651 | L31: 0.0007568774884 | O31: 118490 | Z31: 0.013354
A32: 19920331 | D32: 58.25 | F32: 102.3435478 | G32: 5961.511662 | I32: -0.1473835054 | K32: -0.1632421956 | L32: 0.02664801443 | O32: 120164 | Z32: -0.0237
A33: 19920430 | D33: 60.125 | F33: 102.3435478 | G33: 6153.405814 | I33: 0.03168163598 | K33: 0.01582294579 | L33: 0.0002503656136 | O33: 120164 | Z33: 0.013419
A34: 19920529 | D34: 59.75 | F34: 102.3435478 | G34: 6115.026984 | I34: -0.006256537614 | K34: -0.0221152278 | L34: 0.0004890833007 | O34: 120164 | Z34: 0.006439
A35: 19920630 | B35: 0.12 | C35: 0 | D35: 48 | F35: 102.5994067 | G35: 4924.771522 | I35: -0.2164712997 | K35: -0.2323299899 | L35: 0.0539772242 | O35: 118586 | Z35: -0.019271
A36: 19920731 | D36: 46.75 | F36: 102.5994067 | G36: 4796.522264 | I36: -0.02638675517 | K36: -0.04224544536 | L36: 0.001784677654 | O36: 118586 | Z36: 0.0399
A37: 19920831 | B37: 0.12 | C37: 0 | D37: 46 | F37: 102.8670573 | G37: 4731.884638 | I37: -0.01356756033 | K37: -0.02942625052 | L37: 0.0008659042197 | O37: 118586 | Z37: -0.02082
A38: 19920930 | D38: 45.125 | F38: 102.8670573 | G38: 4641.875962 | I38: -0.01920497984 | K38: -0.03506367002 | L38: 0.001229460955 | O38: 118586 | Z38: 0.012447
A39: 19921030 | D39: 52.5 | F39: 102.8670573 | G39: 5400.52051 | I39: 0.1513767529 | K39: 0.1355180628 | L39: 0.01836514533 | O39: 118586 | Z39: 0.010986
A40: 19921130 | B40: 0.12 | C40: 0 | D40: 57.5 | F40: 103.0817364 | G40: 5927.199844 | I40: 0.09305656006 | K40: 0.07719786987 | L40: 0.005959511113 | O40: 118586 | Z40: 0.040193
A41: 19921231 | D41: 59.75 | F41: 103.0817364 | G41: 6159.133751 | I41: 0.03838424301 | K41: 0.02252555282 | L41: 0.0005074005299 | O41: 117841 | Z41: 0.017768
A42: 19930129 | D42: 59.5 | F42: 103.0817364 | G42: 6133.363317 | I42: -0.00419287826 | K42: -0.02005156845 | L42: 0.0004020653972 | O42: 117841 | Z42: 0.012644
A43: 19930226 | B43: 0.12 | C43: 0 | D43: 53 | F43: 103.315129 | G43: 5475.701838 | I43: -0.1134228074 | K43: -0.1292814976 | L43: 0.01671370561 | O43: 117841 | Z43: 0.005402
A44: 19930331 | D44: 51.5 | F44: 103.315129 | G44: 5320.729145 | I44: -0.02871010588 | K44: -0.04456879607 | L44: 0.001986377583 | O44: 116595 | Z44: 0.025116
A45: 19930430 | D45: 51.25 | F45: 103.315129 | G45: 5294.900363 | I45: -0.004866189651 | K45: -0.02072487984 | L45: 0.0004295206443 | O45: 116595 | Z45: -0.0254
A46: 19930528 | B46: 0.12 | C46: 0 | D46: 56.625 | F46: 103.534075 | G46: 5862.616996 | I46: 0.1018519287 | K46: 0.08599323855 | L46: 0.007394837076 | O46: 116595 | Z46: 0.029599
A47: 19930630 | D47: 39.5 | F47: 103.534075 | G47: 4089.595962 | I47: -0.3601499119 | K47: -0.3760086021 | L47: 0.1413824688 | O47: 115614 | Z47: 0.00544
A48: 19930730 | D48: 27.75 | F48: 103.534075 | G48: 2873.070581 | I48: -0.3530648317 | K48: -0.3689235219 | L48: 0.136104565 | O48: 115614 | Z48: -0.000792
A49: 19930831 | B49: 0.12 | C49: 0 | D49: 26.5 | F49: 104.0029085 | G49: 2756.077076 | I49: -0.04157302723 | K49: -0.05743171741 | L49: 0.003298402165 | O49: 115614 | Z49: 0.039479
A50: 19930930 | D50: 23.375 | F50: 104.0029085 | G50: 2431.067987 | I50: -0.1254776578 | K50: -0.141336348 | L50: 0.01997596327 | O50: 116147 | Z50: 0.000641
A51: 19931029 | D51: 30.75 | F51: 104.0029085 | G51: 3198.089438 | I51: 0.2742229191 | K51: 0.2583642289 | L51: 0.06675207477 | O51: 116147 | Z51: 0.018064
A52: 19931130 | B52: 0.12 | C52: 0 | D52: 31.5 | F52: 104.3991101 | G52: 3288.571968 | I52: 0.02789983753 | K52: 0.01204114734 | L52: 0.0001449892293 | O52: 116147 | Z52: -0.017606
A53: 19931231 | D53: 29.25 | F53: 104.3991101 | G53: 3053.67397 | I53: -0.07410797215 | K53: -0.08996666234 | L53: 0.008094000333 | O53: 116495 | Z53: 0.019515
A54: 19940131 | D54: 32.75 | F54: 104.3991101 | G54: 3419.070856 | I54: 0.1130233884 | K54: 0.09716469822 | L54: 0.00944097858 | O54: 116495 | Z54: 0.031466
A55: 19940228 | B55: 0.12 | C55: 0 | D55: 36.5 | F55: 104.74234 | G55: 3823.095412 | I55: 0.1116915772 | K55: 0.09583288698 | L55: 0.009183942227 | O55: 116495 | Z55: -0.024226
A56: 19940331 | D56: 33.25 | F56: 104.74234 | G56: 3482.682807 | I56: -0.09325749349 | K56: -0.1091161837 | L56: 0.01190634154 | O56: 118140 | Z56: -0.045795
A57: 19940429 | D57: 30 | F57: 104.74234 | G57: 3142.270201 | I57: -0.1028573854 | K57: -0.1187160756 | L57: 0.01409350661 | O57: 118140 | Z57: 0.009478
A58: 19940531 | B58: 0.12 | C58: 0 | D58: 29.25 | F58: 105.1720522 | G58: 3076.282527 | I58: -0.02122363645 | K58: -0.03708232664 | L58: 0.001375098949 | O58: 118140 | Z58: 0.00936
A59: 19940630 | D59: 26.5 | F59: 105.1720522 | G59: 2787.059384 | I59: -0.09873484069 | K59: -0.1145935309 | L59: 0.01313167732 | O59: 118140 | Z59: -0.027909
A60: 19940729 | D60: 33.6875 | F60: 105.1720522 | G60: 3542.983509 | I60: 0.2399821157 | K60: 0.2241234255 | L60: 0.05023130985 | O60: 118333 | Z60: 0.030628
A61: 19940831 | B61: 0.12 | C61: 0 | D61: 36.1875 | F61: 105.5208093 | G61: 3818.534286 | I61: 0.07489748283 | K61: 0.05903879264 | L61: 0.003485579037 | O61: 118333 | Z61: 0.042597
A62: 19940930 | D62: 33.6875 | F62: 105.5208093 | G62: 3554.732262 | I62: -0.07158690666 | K62: -0.08744559685 | L62: 0.007646732409 | O62: 119543 | Z62: -0.018363
A63: 19941031 | D63: 43.1875 | F63: 105.5208093 | G63: 4557.179951 | I63: 0.2484242529 | K63: 0.2325655627 | L63: 0.05408674094 | O63: 119543 | Z63: 0.01452
A64: 19941130 | B64: 0.12 | C64: 0 | D64: 37.25 | F64: 105.8607421 | G64: 3943.312643 | I64: -0.144682858 | K64: -0.1605415482 | L64: 0.0257735887 | O64: 119543 | Z64: -0.037219
A65: 19941230 | D65: 39 | F65: 105.8607421 | G65: 4128.568941 | I65: 0.0459097013 | K65: 0.03005101112 | L65: 0.0009030632692 | O65: 119890 | Z65: 0.012609
A66: 19950131 | D66: 40.375 | F66: 105.8607421 | G66: 4274.127462 | I66: 0.03464913541 | K66: 0.01879044523 | L66: 0.0003530808318 | O66: 119890 | Z66: 0.020399
A67: 19950228 | B67: 0.12 | C67: 0 | D67: 39.5 | F67: 106.1823443 | G67: 4194.202601 | I67: -0.01887674027 | K67: -0.03473543046 | L67: 0.001206550129 | O67: 119890 | Z67: 0.039615
A68: 19950331 | D68: 35.25 | F68: 106.1823443 | G68: 3742.927638 | I68: -0.1138351426 | K68: -0.1296938328 | L68: 0.01682049028 | O68: 121093 | Z68: 0.027041
A69: 19950428 | D69: 38.25 | F69: 106.1823443 | G69: 4061.474671 | I69: 0.08167803101 | K69: 0.06581934083 | L69: 0.004332185627 | O69: 121093 | Z69: 0.025048
A70: 19950531 | B70: 0.12 | C70: 0 | D70: 41.5625 | F70: 106.4889159 | G70: 4425.945568 | I70: 0.08593781618 | K70: 0.07007912599 | L70: 0.0049110839 | O70: 121158 | Z70: 0.034007
A71: 19950630 | D71: 46.4375 | F71: 106.4889159 | G71: 4945.079033 | I71: 0.1109090041 | K71: 0.09505031388 | L71: 0.009034562168 | O71: 121905 | Z71: 0.031169
A72: 19950731 | D72: 45 | F72: =F71*(1+B72/D72) -> 106.4889159 | G72: =F72*D72 -> 4792.001216 | I72: =LN(D72+B72)-LN(D71/(1+C72)) -> -0.03144483271 | K72: =I72-$D$380 -> -0.04730352289 | L72: =K72^2 -> 0.002237623278 | O72: 121905 | Z72: 0.040779
A73: 19950831 | B73: 0.12 | C73: 0 | D73: 43 | F73: 106.7860943 | G73: 4591.802054 | I73: -0.04267556317 | K73: -0.05853425336 | L73: 0.003426258816 | O73: 121905 | Z73: 0.009298
A74: 19950929 | D74: 37.25 | F74: 106.7860943 | G74: 3977.782012 | I74: -0.1435481709 | K74: -0.1594068611 | L74: 0.02541054735 | O74: 122922 | Z74: 0.036365
A75: 19951031 | D75: 36.3125 | F75: 106.7860943 | G75: 3877.670049 | I75: -0.02548991021 | K75: -0.0413486004 | L75: 0.001709706755 | O75: 122922 | Z75: -0.011314
A76: 19951130 | B76: 0.12 | C76: 0 | D76: 38.125 | F76: 107.1222079 | G76: 4084.034176 | I76: 0.05185079816 | K76: 0.03599210798 | L76: 0.001295431837 | O76: 122922 | Z76: 0.042804
A77: 19951229 | D77: 31.875 | F77: 107.1222079 | G77: 3414.520377 | I77: -0.1790482314 | K77: -0.1949069216 | L77: 0.0379887081 | O77: 123118 | Z77: 0.015183
A78: 19960131 | D78: 27.625 | F78: 107.1222079 | G78: 2959.250993 | I78: -0.1431008436 | K78: -0.1589595338 | L78: 0.02526813339 | O78: 123118 | Z78: 0.028138
A79: 19960229 | D79: 27.5 | F79: 107.1222079 | G79: 2945.860717 | I79: -0.004535155165 | K79: -0.02039384535 | L79: 0.0004159089282 | O79: 123118 | Z79: 0.01631
A80: 19960329 | D80: 24.5625 | F80: 107.1222079 | G80: 2631.189231 | I80: -0.112965115 | K80: -0.1288238052 | L80: 0.01659557279 | O80: 123685 | Z80: 0.010925
A81: 19960430 | D81: 24.375 | F81: 107.1222079 | G81: 2611.103818 | I81: -0.007662872746 | K81: -0.02352156293 | L81: 0.0005532639228 | O81: 123685 | Z81: 0.025508
A82: 19960531 | D82: 26.125 | F82: 107.1222079 | G82: 2798.567681 | I82: 0.0693346934 | K82: 0.05347600321 | L82: 0.00285968292 | O82: 123685 | Z82: 0.026802
A83: 19960628 | D83: 21 | F83: 107.1222079 | G83: 2249.566366 | I83: -0.2183702726 | K83: -0.2342289627 | L83: 0.05486320699 | O83: 123785 | Z83: -0.008302
A84: 19960731 | D84: 22 | F84: 107.1222079 | G84: 2356.688574 | I84: 0.04652001563 | K84: 0.03066132545 | L84: 0.0009401168783 | O84: 123785 | Z84: -0.053814
A85: 19960830 | D85: 24.25 | F85: 107.1222079 | G85: 2597.713542 | I85: 0.09737416403 | K85: 0.08151547384 | L85: 0.006644772475 | O85: 123785 | Z85: 0.032448
A86: 19960930 | D86: 22.1875 | F86: 107.1222079 | G86: 2376.773988 | I86: -0.08888755015 | K86: -0.1047462403 | L86: 0.01097177486 | O86: 124497 | Z86: 0.053035
A87: 19961031 | D87: 23 | F87: 107.1222079 | G87: 2463.810782 | I87: 0.03596514869 | K87: 0.02010645851 | L87: 0.0004042696737 | O87: 124497 | Z87: 0.013729
A88: 19961129 | D88: 24.125 | F88: 107.1222079 | G88: 2584.323266 | I88: 0.0477544313 | K88: 0.03189574111 | L88: 0.001017338301 | O88: 124497 | Z88: 0.065577
A89: 19961231 | D89: 20.875 | F89: 107.1222079 | G89: 2236.17609 | I89: -0.1446963765 | K89: -0.1605550667 | L89: 0.02577792943 | O89: 124585 | Z89: -0.011397
A90: 19970131 | D90: 16.625 | F90: 107.1222079 | G90: 1780.906706 | I90: -0.2276446842 | K90: -0.2435033744 | L90: 0.05929389334 | O90: 124585 | Z90: 0.053473
A91: 19970228 | D91: 16.25 | F91: 107.1222079 | G91: 1740.735878 | I91: -0.02281467777 | K91: -0.03867336795 | L91: 0.001495629389 | O91: 124585 | Z91: -0.001122
A92: 19970331 | D92: 18.25 | F92: 107.1222079 | G92: 1954.980294 | I92: 0.1160721713 | K92: 0.1002134811 | L92: 0.01004274179 | O92: 126425 | Z92: -0.044868
A93: 19970430 | D93: 17 | F93: 107.1222079 | G93: 1821.077534 | I93: -0.07095173597 | K93: -0.08681042616 | L93: 0.00753605009 | O93: 126425 | Z93: 0.042373
A94: 19970530 | D94: 16.625 | F94: 107.1222079 | G94: 1780.906706 | I94: -0.02230575751 | K94: -0.0381644477 | L94: 0.001456525068 | O94: 126425 | Z94: 0.071624
A95: 19970630 | D95: 14.25 | F95: 107.1222079 | G95: 1526.491463 | I95: -0.1541506798 | K95: -0.17000937 | L95: 0.02890318589 | O95: 126559 | Z95: 0.044095
A96: 19970731 | D96: 17.5 | F96: 107.1222079 | G96: 1874.638638 | I96: 0.2054439742 | K96: 0.189585284 | L96: 0.03594257992 | O96: 126559 | Z96: 0.076514
A97: 19970829 | D97: 21.75 | F97: 107.1222079 | G97: 2329.908022 | I97: 0.2174128766 | K97: 0.2015541864 | L97: 0.04062409006 | O97: 126559 | Z97: -0.036291
A98: 19970930 | D98: 21.6875 | F98: 107.1222079 | G98: 2323.212884 | I98: -0.002877699828 | K98: -0.01873639001 | L98: 0.0003510523108 | O98: 127949 | Z98: 0.058499
A99: 19971031 | D99: 17.03125 | F99: 107.1222079 | G99: 1824.425103 | I99: -0.2416861658 | K99: -0.257544856 | L99: 0.06632935287 | O99: 128019 | Z99: -0.034436
A100: 19971128 | D100: 17.75 | F100: 107.1222079 | G100: 1901.41919 | I100: 0.04133562406 | K100: 0.02547693387 | L100: 0.0006490741595 | O100: 128019 | Z100: 0.030404
A101: 19971231 | D101: 13.125 | F101: 107.1222079 | G101: 1405.978979 | I101: -0.3018667074 | K101: -0.3177253976 | L101: 0.1009494283 | O101: 128019 | Z101: 0.017817
A102: 19980130 | D102: 18.3125 | F102: 107.1222079 | G102: 1961.675432 | I102: 0.3330650783 | K102: 0.3172063881 | L102: 0.1006198927 | O102: 128019 | Z102: 0.004502
A103: 19980227 | D103: 23.625 | F103: 107.1222079 | G103: 2530.762162 | I103: 0.2547215866 | K103: 0.2388628964 | L103: 0.05705548328 | O103: 128019 | Z103: 0.073303
A104: 19980331 | D104: 27.5 | F104: 107.1222079 | G104: 2945.860717 | I104: 0.1518805313 | K104: 0.1360218411 | L104: 0.01850194126 | O104: 133041 | Z104: 0.051301
A105: 19980430 | D105: 27.375 | F105: 107.1222079 | G105: 2932.470441 | I105: -0.004555816536 | K105: -0.02041450672 | L105: 0.0004167520847 | O105: 133041 | Z105: 0.010904
A106: 19980529 | D106: 26.625 | F106: 107.1222079 | G106: 2852.128785 | I106: -0.02777956411 | K106: -0.04363825429 | L106: 0.001904297238 | O106: 133041 | Z106: -0.025748
A107: 19980630 | D107: 28.6875 | F107: 107.1222079 | G107: 3073.068339 | I107: 0.07461086379 | K107: 0.0587521736 | L107: 0.003451817903 | O107: 134639 | Z107: 0.031944
A108: 19980731 | D108: 34.625 | F108: 107.1222079 | G108: 3709.106448 | I108: 0.1881144767 | K108: 0.1722557865 | L108: 0.02967205598 | O108: 134639 | Z108: -0.023367
A109: 19980831 | D109: 31.1875 | F109: 107.1222079 | G109: 3340.873859 | I109: -0.104558591 | K109: -0.1204172812 | L109: 0.01450032161 | O109: 134639 | Z109: -0.157844
A110: 19980930 | D110: 38.125 | F110: 107.1222079 | G110: 4084.034176 | I110: 0.2008528614 | K110: 0.1849941712 | L110: 0.03422284339 | O110: 135638 | Z110: 0.063827
A111: 19981030 | D111: 37.125 | F111: 107.1222079 | G111: 3976.911968 | I111: -0.0265796378 | K111: -0.04243832799 | L111: 0.001801011683 | O111: 135638 | Z111: 0.074393
A112: 19981130 | D112: 31.9375 | F112: 107.1222079 | G112: 3421.215515 | I112: -0.1505097292 | K112: -0.1663684193 | L112: 0.02767845096 | O112: 135638 | Z112: 0.062023
A113: 19981231 | D113: 40.9375 | F113: 107.1222079 | G113: 4385.315386 | I113: 0.2482656454 | K113: 0.2324069552 | L113: 0.05401299285 | O113: 136417 | Z113: 0.063051
A114: 19990129 | D114: 41.1875 | F114: 107.1222079 | G114: 4412.095938 | I114: 0.006088298867 | K114: -0.009770391319 | L114: 9.546054653e-05 | O114: 136417 | Z114: 0.038456
A115: 19990226 | D115: 34.8125 | F115: 107.1222079 | G115: 3729.191862 | I115: -0.1681582946 | K115: -0.1840169848 | L115: 0.03386225068 | O115: 136417 | Z115: -0.038085
A116: 19990331 | D116: 35.9375 | F116: 107.1222079 | G116: 3849.704346 | I116: 0.03180480087 | K116: 0.01594611068 | L116: 0.0002542784459 | O116: 136417 | Z116: 0.037932
A117: 19990430 | D117: 46 | F117: 107.1222079 | G117: 4927.621563 | I117: 0.2468600779 | K117: 0.2310013877 | L117: 0.05336164114 | O117: 136417 | Z117: 0.049104
A118: 19990528 | D118: 44.0625 | F118: 107.1222079 | G118: 4720.072286 | I118: -0.04303231592 | K118: -0.0588910061 | L118: 0.0034681506 | O118: 136417 | Z118: -0.020718
A119: 19990630 | D119: 46.3125 | F119: 107.1222079 | G119: 4961.097253 | I119: 0.04980282248 | K119: 0.0339441323 | L119: 0.001152204117 | O119: 136417 | Z119: 0.050829
A120: 19990730 | D120: 55.6875 | F120: 107.1222079 | G120: 5965.367952 | I120: 0.1843438022 | K120: 0.168485112 | L120: 0.02838723296 | O120: 136417 | Z120: -0.030843
A121: 19990831 | D121: 65.25 | F121: 107.1222079 | G121: 6989.724065 | I121: 0.158470341 | K121: 0.1426116508 | L121: 0.02033808294 | O121: 136417 | Z121: -0.009931
A122: 19990930 | D122: 63.3125 | F122: 107.1222079 | G122: 6782.174788 | I122: -0.03014326419 | K122: -0.04600195438 | L122: 0.002116179807 | O122: 161159 | Z122: -0.022693
A123: 19991029 | D123: 80.125 | F123: 107.1222079 | G123: 8583.166908 | I123: 0.2355051332 | K123: 0.219646443 | L123: 0.04824455994 | O123: 161159 | Z123: 0.062095
A124: 19991130 | D124: 97.875 | F124: 107.1222079 | G124: 10484.5861 | I124: 0.2001032391 | K124: 0.1842445489 | L124: 0.03394605379 | O124: 161159 | Z124: 0.036824
A125: 19991231 | D125: 102.8125 | F125: 107.1222079 | G125: 11013.502 | I125: 0.04921578665 | K125: 0.03335709646 | L125: 0.001112695884 | O125: 161159 | Z125: 0.083754
A126: 20000131 | D126: 103.75 | F126: 107.1222079 | G126: 11113.92907 | I126: 0.009077218151 | K126: -0.006781472035 | L126: 4.598836296e-05 | O126: 161159 | Z126: -0.039624
A127: 20000229 | D127: 114.625 | F127: 107.1222079 | G127: 12278.88308 | I127: 0.09968177147 | K127: 0.08382308128 | L127: 0.007026308955 | O127: 161159 | Z127: 0.031778
A128: 20000331 | D128: 135.8125 | F128: 107.1222079 | G128: 14548.53486 | I128: 0.1696093274 | K128: 0.1537506373 | L128: 0.02363925846 | O128: 162680 | Z128: 0.053501
A129: 20000428 | D129: 124.0625 | F129: 107.1222079 | G129: 13289.84892 | I129: -0.09048978714 | K129: -0.1063484773 | L129: 0.01130999863 | O129: 162680 | Z129: -0.059527
A130: 20000531 | D130: 84 | F130: 107.1222079 | G130: 8998.265463 | I130: -0.389968672 | K130: -0.4058273622 | L130: 0.1646958479 | O130: 162744 | Z130: -0.03887
A131: 20000630 | B131: 0 | C131: 1 | D131: 52.375 | F131: =F130*(1+B131/D131)*(1+C131) -> 214.2444158 | G131: 11221.05128 | I131: 0.22075976 | K131: 0.2049010698 | L131: 0.04198444839 | O131: 324826 | Z131: 0.051603
A132: 20000731 | D132: 50.8125 | F132: =F131*(1+B132/D132)*(1+C132) -> 214.2444158 | G132: 10886.29438 | I132: -0.03028699093 | K132: -0.04614568112 | L132: 0.002129423886 | O132: 324969 | Z132: -0.017712
A133: 20000831 | D133: 60.9375 | F133: 214.2444158 | G133: 13055.51909 | I133: 0.1817063615 | K133: 0.1658476713 | L133: 0.02750545006 | O133: 324969 | Z133: 0.075006
A134: 20000929 | D134: 25.75 | F134: 214.2444158 | G134: 5516.793707 | I134: =LN(D134+B134)-LN(D133/(1+C134)) -> -0.8614141216 | K134: -0.8772728118 | L134: 0.7696075864 | O134: 335677 | Z134: -0.051141
A135: 20001031 | D135: 19.5625 | F135: 214.2444158 | G135: 4191.156384 | I135: -0.2748201588 | K135: -0.290678849 | L135: 0.08449419325 | O135: 335766 | Z135: -0.02449
A136: 20001130 | D136: 16.5 | F136: 214.2444158 | G136: =F136*D136 -> 3535.032861 | I136: =LN(D136+B136)-LN(D135/(1+C136)) -> -0.1702540874 | K136: =I136-$D$380 -> -0.1861127776 | L136: =K136^2 -> 0.03463796598 | O136: 335766 | Z136: -0.102372
A137: 20001229 | D137: 14.875 | F137: 214.2444158 | G137: 3186.885685 | I137: -0.1036784295 | K137: -0.1195371197 | L137: 0.01428912298 | O137: 345307 | Z137: 0.020422
A138: 20010131 | D138: 21.625 | F138: 214.2444158 | G138: 4633.035492 | I138: 0.3741681014 | K138: 0.3583094112 | L138: 0.1283856342 | O138: 346029 | Z138: 0.039601
A139: 20010228 | D139: 18.25 | F139: 214.2444158 | G139: 3909.960588 | I139: -0.1696849728 | K139: -0.185543663 | L139: 0.03442645087 | O139: 346069 | Z139: -0.099102
A140: 20010330 | D140: 22.07 | F140: 214.2444158 | G140: 4728.374257 | I140: 0.1900541402 | K140: 0.1741954501 | L140: 0.03034405482 | O140: 346541 | Z140: -0.070392
A141: 20010430 | D141: 25.49 | F141: 214.2444158 | G141: 5461.090159 | I141: 0.1440669981 | K141: 0.1282083079 | L141: 0.01643737022 | O141: 346541 | Z141: 0.083829
A142: 20010531 | D142: 19.95 | F142: 214.2444158 | G142: 4274.176095 | I142: -0.2450570751 | K142: -0.2609157652 | L142: 0.06807703655 | O142: 349023 | Z142: 0.010455
A143: 20010629 | D143: 23.25 | F143: 214.2444158 | G143: 4981.182667 | I143: 0.1530759887 | K143: 0.1372172985 | L143: 0.01882858701 | O143: 350474 | Z143: -0.017553
A144: 20010731 | D144: 18.79 | F144: 214.2444158 | G144: 4025.652573 | I144: -0.2129803186 | K144: -0.2288390088 | L144: 0.05236729195 | O144: 350474 | Z144: -0.018298
A145: 20010831 | D145: 18.55 | F145: 214.2444158 | G145: 3974.233913 | I145: -0.01285502437 | K145: -0.02871371456 | L145: 0.0008244774037 | O145: 350812 | Z145: -0.058981
A146: 20010928 | D146: 15.51 | F146: 214.2444158 | G146: 3322.930889 | I146: -0.1789848119 | K146: -0.1948435021 | L146: 0.03796399029 | O146: 350922 | Z146: -0.091485
A147: 20011031 | D147: 17.56 | F147: 214.2444158 | G147: 3762.131941 | I147: 0.124138611 | K147: 0.1082799208 | L147: 0.01172454126 | O147: 351116 | Z147: 0.027836
A148: 20011130 | D148: 21.3 | F148: 214.2444158 | G148: 4563.406056 | I148: 0.1930834845 | K148: 0.1772247943 | L148: 0.03140862772 | O148: 351116 | Z148: 0.078777
A149: 20011231 | D149: 21.9 | F149: 214.2444158 | G149: 4691.952706 | I149: 0.02777956411 | K149: 0.01192087392 | L149: 0.000142107235 | O149: 352459 | Z149: 0.017853
A150: 20020131 | D150: 24.72 | F150: 214.2444158 | G150: 5296.121958 | I150: 0.1211259958 | K150: 0.1052673056 | L150: 0.01108120562 | O150: 353250 | Z150: -0.015975
A151: 20020228 | D151: 21.7 | F151: 214.2444158 | G151: 4649.103823 | I151: -0.130300372 | K151: -0.1461590622 | L151: 0.02136247147 | O151: 353383 | Z151: -0.021696
A152: 20020328 | D152: 23.67 | F152: 214.2444158 | G152: 5071.165322 | I152: 0.08689616298 | K152: 0.07103747279 | L152: 0.005046322541 | O152: 354085 | Z152: 0.044678
A153: 20020430 | D153: 24.27 | F153: 214.2444158 | G153: 5199.711971 | I153: 0.02503259621 | K153: 0.009173906026 | L153: 8.416055178e-05 | O153: 354085 | Z153: -0.049618
A154: 20020531 | D154: 23.3 | F154: 214.2444158 | G154: 4991.894888 | I154: -0.04078765917 | K154: -0.05664634935 | L154: 0.003208808895 | O154: 355700 | Z154: -0.010521
A155: 20020628 | D155: 17.72 | F155: 214.2444158 | G155: 3796.411048 | I155: -0.2737594154 | K155: -0.2896181056 | L155: 0.08387864708 | O155: 358855 | Z155: -0.070251
A156: 20020731 | D156: 15.26 | F156: 214.2444158 | G156: 3269.369785 | I156: -0.1494589193 | K156: -0.1653176095 | L156: 0.02732991201 | O156: 358886 | Z156: -0.081149
A157: 20020830 | D157: 14.75 | F157: 214.2444158 | G157: 3160.105133 | I157: -0.03399194307 | K157: -0.04985063326 | L157: 0.002485085636 | O157: 358886 | Z157: 0.007976
A158: 20020930 | D158: 14.5 | F158: 214.2444158 | G158: 3106.544029 | I158: -0.01709443336 | K158: -0.03295312355 | L158: 0.001085908351 | O158: 358959 | Z158: -0.09992
A159: 20021031 | D159: 16.07 | F159: 214.2444158 | G159: 3442.907762 | I159: 0.1028055303 | K159: 0.08694684014 | L159: 0.00755975301 | O159: 359008 | Z159: 0.074919
A160: 20021129 | D160: 15.5 | F160: 214.2444158 | G160: 3320.788445 | I160: -0.03611415582 | K160: -0.05197284601 | L160: 0.002701176722 | O160: 359008 | Z160: 0.061263
A161: 20021231 | D161: 14.33 | F161: 214.2444158 | G161: 3070.122478 | I161: -0.07848478209 | K161: -0.09434347227 | L161: 0.00890069076 | O161: 360257 | Z161: -0.053315
A162: 20030131 | D162: 14.36 | F162: 214.2444158 | G162: 3076.549811 | I162: 0.00209132178 | K162: -0.01376736841 | L162: 0.0001895404328 | O162: 360479 | Z162: -0.0234
A163: 20030228 | D163: 15.01 | F163: 214.2444158 | G163: 3215.808681 | I163: 0.04427008203 | K163: 0.02841139184 | L163: 0.0008072071862 | O163: 360479 | Z163: -0.015391
A164: 20030331 | D164: 14.14 | F164: 214.2444158 | G164: 3029.416039 | I164: -0.05970898518 | K164: -0.07556767536 | L164: 0.00571047356 | O164: 365545 | Z164: 0.010318
A165: 20030430 | D165: 14.22 | F165: 214.2444158 | G165: 3046.555593 | I165: 0.005641763907 | K165: -0.01021692628 | L165: 0.0001043855826 | O165: 365545 | Z165: 0.08275
A166: 20030530 | D166: 17.95 | F166: 214.2444158 | G166: 3845.687264 | I166: 0.2329406906 | K166: 0.2170820004 | L166: 0.04712459489 | O166: 365611 | Z166: 0.063436
A167: 20030630 | D167: 19.06 | F167: 214.2444158 | G167: 4083.498565 | I167: 0.06000178329 | K167: 0.04414309311 | L167: 0.001948612669 | O167: 366993 | Z167: 0.01632
A168: 20030731 | D168: 21.08 | F168: 214.2444158 | G168: 4516.272285 | I168: 0.1007328254 | K168: 0.08487413526 | L168: 0.007203618836 | O168: 366993 | Z168: 0.023098
A169: 20030829 | D169: 22.61 | F169: 214.2444158 | G169: 4844.066241 | I169: 0.07006756262 | K169: 0.05420887243 | L169: 0.00293860185 | O169: 362501 | Z169: 0.024996
A170: 20030930 | D170: 20.72 | F170: 214.2444158 | G170: 4439.144295 | I170: -0.0872928689 | K170: -0.1031515591 | L170: 0.01064024414 | O170: 366727 | Z170: -0.009116
A171: 20031031 | D171: 22.89 | F171: 214.2444158 | G171: 4904.054678 | I171: 0.09960071657 | K171: 0.08374202639 | L171: 0.007012726983 | O171: 367491 | Z171: 0.060316
A172: 20031128 | D172: 20.91 | F172: 214.2444158 | G172: 4479.850734 | I172: -0.09047262052 | K172: -0.1063313107 | L172: 0.01130634764 | O172: 367491 | Z172: 0.016593
A173: 20031231 | D173: 21.37 | F173: 214.2444158 | G173: 4578.403166 | I173: 0.02176055589 | K173: 0.005901865704 | L173: 3.483201879e-05 | O173: 368761 | Z173: 0.045505
A174: 20040130 | D174: 22.56 | F174: 214.2444158 | G174: 4833.35402 | I174: 0.0541903573 | K174: 0.03833166711 | L174: 0.001469316704 | O174: 369730 | Z174: 0.023037
A175: 20040227 | D175: 23.92 | F175: 214.2444158 | G175: 5124.726426 | I175: 0.05853650245 | K175: 0.04267781227 | L175: 0.00182139566 | O175: 369730 | Z175: 0.015479
A176: 20040331 | D176: 27.04 | F176: 214.2444158 | G176: 5793.169003 | I176: 0.1226023221 | K176: 0.1067436319 | L176: 0.01139420295 | O176: 372855 | Z176: -0.010667
A177: 20040430 | D177: 25.78 | F177: 214.2444158 | G177: 5523.221039 | I177: -0.04771825366 | K177: -0.06357694385 | L177: 0.004042027789 | O177: 380042 | Z177: -0.024214
A178: 20040528 | D178: 28.06 | F178: 214.2444158 | G178: 6011.698307 | I178: 0.08474607716 | K178: 0.06888738698 | L178: 0.004745472085 | O178: 380042 | Z178: 0.014058
A179: 20040630 | D179: 32.54 | F179: 214.2444158 | G179: 6971.51329 | I179: 0.1481250271 | K179: 0.1322663369 | L179: 0.01749438388 | O179: 385192 | Z179: 0.021601
A180: 20040730 | D180: 32.34 | F180: 214.2444158 | G180: 6928.664407 | I180: -0.006165247642 | K180: -0.02202393783 | L180: 0.0004850538375 | O180: 387925 | Z180: -0.03767
A181: 20040831 | D181: 34.49 | F181: 214.2444158 | G181: 7389.289901 | I181: 0.0643645728 | K181: 0.04850588261 | L181: 0.002352820648 | O181: 387925 | Z181: 0.002728
A182: 20040930 | D182: 38.75 | F182: 214.2444158 | G182: 8301.971112 | I182: 0.1164613289 | K182: 0.1006026387 | L182: 0.01012089091 | O182: 391444 | Z182: 0.020543
A183: 20041029 | D183: 52.4 | F183: 214.2444158 | G183: 11226.40739 | I183: 0.3017758355 | K183: 0.2859171453 | L183: 0.081748614 | O183: 391444 | Z183: 0.017806
A184: 20041130 | D184: 67.05 | F184: 214.2444158 | G184: 14365.08808 | I184: 0.2465320184 | K184: 0.2306733282 | L184: 0.05321018435 | O184: 402058 | Z184: 0.048208
A185: 20041231 | D185: 64.4 | F185: 214.2444158 | G185: 13797.34038 | I185: -0.04032497662 | K185: -0.0561836668 | L185: 0.003156604416 | O185: 404549 | Z185: 0.035177
A186: 20050131 | D186: 76.9 | F186: 214.2444158 | G186: 16475.39557 | I186: 0.1773922434 | K186: 0.1615335532 | L186: 0.02609308881 | O186: 408586 | Z186: -0.026551
A187: 20050228 | B187: 0 | C187: 1 | D187: 44.86 | F187: 428.4888316 | G187: 19222.00899 | I187: 0.1541878331 | K187: 0.138329143 | L187: 0.01913495179 | O187: 817172 | Z187: 0.022676
A188: 20050331 | D188: 41.67 | F188: 428.4888316 | G188: 17855.12961 | I188: -0.07376508366 | K188: -0.08962377384 | L188: 0.008032420838 | O188: 823137 | Z188: -0.016948
A189: 20050429 | D189: 36.06 | F189: 428.4888316 | G189: 15451.30727 | I189: -0.1445972277 | K189: -0.1604559178 | L189: 0.02574610157 | O189: 823934 | Z189: -0.025185
A190: 20050531 | D190: 39.7593 | F190: 428.4888316 | G190: 17036.416 | I190: 0.09765955822 | K190: 0.08180086804 | L190: 0.006691382012 | O190: 823934 | Z190: 0.037954
A191: 20050630 | D191: 36.81 | F191: 428.4888316 | G191: 15772.67389 | I191: -0.07707422861 | K191: -0.0929329188 | L191: 0.008636527396 | O191: 827981 | Z191: 0.011526
A192: 20050729 | D192: 42.65 | F192: 428.4888316 | G192: 18275.04867 | I192: 0.1472577265 | K192: 0.1313990364 | L192: 0.01726570676 | O192: 829829 | Z192: 0.043335
A193: 20050831 | D193: 46.89 | F193: 428.4888316 | G193: 20091.84131 | I193: 0.09477715916 | K193: 0.07891846898 | L193: 0.006228124746 | O193: 829829 | Z193: -0.005944
A194: 20050930 | D194: 53.61 | F194: 428.4888316 | G194: 22971.28626 | I194: 0.1339311847 | K194: 0.1180724946 | L194: 0.01394111397 | O194: 835019 | Z194: 0.010607
A195: 20051031 | D195: 57.59 | F195: 428.4888316 | G195: 24676.67181 | I195: 0.07161332368 | K195: 0.05575463349 | L195: 0.003108579156 | O195: 839777 | Z195: -0.020873
A196: 20051130 | D196: 67.82 | F196: =F195*(1+B196/D196)*(1+C196) -> 428.4888316 | G196: 29060.11256 | I196: 0.1635081952 | K196: 0.147649505 | L196: 0.02180037632 | O196: 842768 | Z196: 0.040322
A197: 20051230 | D197: 71.89 | F197: 428.4888316 | G197: 30804.0621 | I197: 0.0582800363 | K197: 0.04242134611 | L197: 0.001799570606 | O197: 845617 | Z197: 0.003457
A198: 20060131 | D198: 75.51 | F198: 428.4888316 | G198: 32355.19167 | I198: 0.04912792482 | K198: 0.03326923463 | L198: 0.001106841973 | O198: 848612 | Z198: 0.040041
A199: 20060228 | D199: 68.49 | F199: 428.4888316 | G199: 29347.20008 | I199: -0.09757734861 | K199: -0.1134360388 | L199: 0.0128677349 | O199: 849656 | Z199: -0.001639
A200: 20060331 | D200: 62.72 | F200: 428.4888316 | G200: =F200*D200 -> 26874.81952 | I200: =LN(D200+B200)-LN(D199/(1+C200)) -> -0.08800737317 | K200: =I200-$D$380 -> -0.1038660634 | L200: =K200^2 -> 0.01078815912 | O200: 849188 | Z200: 0.019042
... 1222 more rows
